Cogmind - Beta 10.1 @@@ ROGUE MODE // 2020.10.20 @ 23:27:02 Player: Xhaine Result: Destroyed self with Grenade Launcher Performance ------------- Evolutions (1) 500 Regions Visited (2) 400 Robots Destroyed (35) 175 Value Destroyed (1008) 1008 Prototype IDs (0) 0 Alien Tech Used (0) 0 Bonus (0) 0 TOTAL SCORE: 2083 Bonus ------- None Cogmind --------- Core Integrity 0/400 Matter 263/300 Energy 360/400 System Corruption 1% Temperature Cool (6) Movement Treading (160) Location -9/Materials Parts ------- > --- POWER (2) -------- (None) > --- PROPULSION (3) --- Light Treads Improved Treads > --- UTILITY (2) ------ Medium Storage Unit Large Battery > --- WEAPON (2) ------- Grenade Launcher Mining Claw > --- INVENTORY (8) ---- Heat Sink Peak State ------------ > --- POWER ------------ Ion Engine Ion Engine > --- PROPULSION ------- Aluminum Leg Improved Aluminum Leg Improved Aluminum Leg > --- UTILITY ---------- Medium Storage Unit Large Battery > --- WEAPON ----------- Small Laser > --- INVENTORY -------- Improved Treads Heat Sink Grenade Launcher Mining Claw [Rating: 10] Favorites ----------- Power Ion Engine Engine Ion Engine Power Core Light Nuclear Core Propulsion Aluminum Leg Treads Light Treads Leg Aluminum Leg Utility Small Storage Unit Device Heat Sink Storage Small Storage Unit Protection Light Armor Plating Weapon Light Cannon Energy Gun Medium Laser Energy Cannon Particle Cannon Ballistic Gun Assault Rifle Ballistic Cannon Light Cannon Launcher Grenade Launcher Slashing Weapon Mining Claw Build | -11 -10 -9 ------- Run | Scr Mat Mat Slots Evolved 2 | . . 2 Power 1 | . . 1 Propulsion 1 | . . 1 Utility . | . . . Weapon . | . . . Parts Attached 41 | 7 22 12 Power 7 | 1 5 1 Engine 6 | 1 4 1 Core 1 | . 1 . Reactor . | . . . Propulsion 15 | 2 7 6 Treads 4 | 2 . 2 Leg 11 | . 7 4 Wheel . | . . . Hover . | . . . Flight . | . . . Utility 8 | 1 6 1 Device 3 | . 3 . Storage 4 | 1 2 1 Processor . | . . . Hackware . | . . . Protection 1 | . 1 . Artifact . | . . . Weapon 11 | 3 4 4 Energy Gun 4 | 3 . 1 Energy Cannon 1 | . . 1 Ballistic Gun 2 | . 2 . Ballistic Cannon 2 | . 2 . Launcher 1 | . . 1 Special Weapon . | . . . Impact Weapon . | . . . Slashing Weapon 1 | . . 1 Piercing Weapon . | . . . Special Melee Weapon . | . . . Unidentified Prototypes . | . . . Parts Lost 16 | . 6 10 Power 2 | . . 2 Propulsion 5 | . 1 4 Utility 1 | . 1 . Weapon 8 | . 4 4 Highest Loss Streak 7 | . 4 7 Average Slot Usage (%) 91 | . 95 76 Engine 11 | . 10 12 Core 2 | . 3 . Treads 5 | . 7 . Leg 20 | . 19 23 Device 3 | . 4 . Storage 20 | . 19 22 Protection 1 | . 2 . Energy Gun 5 | . 6 3 Ballistic Gun 8 | . 11 . Ballistic Cannon 10 | . 9 13 Naked Turns . | . . . Heaviest Build 26 | 13 18 26 Greatest Support 40 | 40 40 36 Greatest Overweight (x) 1 | . 1 . Average Overweight (x) . | . . . Largest Inventory Capacity 8 | 6 6 8 Average Capacity 6 | 5 5 7 Most Carried 6 | 4 6 6 Average Carried 3 | 1 3 4 Final Capacity 8 | 6 6 8 Final Carried 4 | 1 4 1 Class Distribution -------------------- 85% | Mutant 14% | Scavenger-Mutant Dominant Class ---------------- Mutant | -10/Materials Mutant | -9/Materials Resources | -11 -10 -9 ----------- Run | Scr Mat Mat Matter Collected 1097 | 218 573 306 Remotely . | . . . Salvage Created 1092 | . 534 558 Parts 75 | . 42 33 Haulers Intercepted 4 | . . 4 Recyclers Shooed 1 | . . 1 Parts Field Recycled . | . . . Retrieved Matter . | . . . Parts Self-Destructed . | . . . Prevented . | . . . Kills | -11 -10 -9 ------- Run | Scr Mat Mat Combat Hostiles Destroyed 25 | . 13 12 Guns 10 | . 8 2 Cannons 14 | . 5 9 AOE 1 | . . 1 Classes Destroyed 4 | . 3 1 Builder 1 | . 1 . Hauler 4 | . . 4 Watcher 5 | . 3 2 Grunt 25 | . 13 12 Best Kill Streak 13 | . 4 13 Combat Bots Only 8 | . 4 8 Max Kills in Single Turn 2 | . 1 2 Gunslinging . | . . . Exploded 1 | . . 1 Melee . | . . . Uniques/NPCs Destroyed . | . . . Combat | -11 -10 -9 -------- Run | Scr Mat Mat Damage Taken 2841 | . 1295 1546 Core 646 | . 243 403 Absorbed by Shields . | . . . Core Remaining (%) 51 | 100 2 . Volleys Fired 134 | . 71 63 Largest 2 | . 2 2 Hottest 108 | . 100 108 Shots Fired 219 | . 128 91 Gun 120 | . 89 31 Cannon 98 | . 39 59 Launcher 1 | . . 1 Special . | . . . Kinetic 160 | . 106 54 Thermal 58 | . 22 36 Explosive 1 | . . 1 Electromagnetic . | . . . Robot Hit Streak 17 | . 11 17 Robot Miss Streak 5 | . 4 5 Penetration Max . | . . . Secondary Targets . | . . . Shots Hit Robots 141 | . 77 64 Core Hits 51 | . 27 24 Critical Hits 2 | . . 2 Critical Kills . | . . . Critical Parts Destroyed 2 | . . 2 Melee Attacks 6 | . . 6 Impact . | . . . Slashing 6 | . . 6 Piercing . | . . . Sneak Attacks . | . . . Combat Hostiles . | . . . Follow-up Attacks . | . . . Damage Inflicted 2272 | . 1049 1223 Guns 949 | . 688 261 Cannons 1090 | . 353 737 Explosions 102 | . . 102 Melee 119 | . . 119 Ramming 12 | . 8 4 Kinetic 1516 | . 882 634 Thermal 523 | . 159 364 Explosive 102 | . . 102 Electromagnetic . | . . . Impact . | . . . Slashing 119 | . . 119 Piercing . | . . . Highest Corruption 4 | . 4 1 Average Corruption 1 | . 1 1 Corruption Purged . | . . . Effects 13 | . 12 1 Message Errors 4 | . 3 1 Matter Fused 2 | . 2 . Heat Flow Errors 1 | . 1 . Energy Discharges 1 | . 1 . Data Loss (minor) 1 | . 1 . Targeting Errors 2 | . 2 . Weapon Failures 2 | . 2 . Overload Shots . | . . . Overflow Damage 34 | . 25 9 Projectiles 32 | . 25 7 Explosions . | . . . Melee 2 | . . 2 Knockbacks 10 | . 5 5 Impact . | . . . Kinetic 9 | . 4 5 Secondary 1 | . 1 . Self-Inflicted Damage 44 | . 4 40 Shots 1 | . . 1 Rammed 4 | . 2 2 Targets Rammed 6 | . 3 3 Kicked 2 | . 1 1 Crushed . | . . . Highest Temperature 303 | . 303 186 Average Temperature 81 | . 97 60 Received Heat Transfer 1341 | . 723 618 Siege Activations . | . . . Robots Corrupted . | . . . Combat Hostiles . | . . . Parts Fried . | . . . Impact Corruptions . | . . . Robots Melted . | . . . Combat Hostiles . | . . . Parts Melted . | . . . Heat Transferred 1266 | . 481 785 Parts Sabotaged . | . . . Parts Stolen . | . . . Parts Stripped . | . . . Power Chain Reactions . | . . . Missiles Intercepted . | . . . Alert | -11 -10 -9 ------- Run | Scr Mat Mat Peak Influence 297 | . 149 297 Initial 15 | . . 15 Average 65 | . 48 134 Maximum Alert Level 1 | . . 1 Low Security (%) 91 | 100 100 61 Level 1 8 | . . 38 Level 2 . | . . . Level 3 . | . . . Level 4 . | . . . Level 5 . | . . . High Security . | . . . Max Security . | . . . Squads Dispatched 3 | . 3 . Investigation 3 | . 3 . Extermination . | . . . Reinforcement . | . . . Assault . | . . . Garrison . | . . . Intercept . | . . . Construction Impeded . | . . . Haulers Reinforced . | . . . Stealth | -11 -10 -9 --------- Run | Scr Mat Mat Distress Signals 4 | . 1 3 Communications Jammed . | . . . Distress Signals . | . . . Times Spotted 41 | . 19 22 Peak Tracking Total 8 | . 5 8 Tactical Retreats 1 | . 1 . Traps | -11 -10 -9 ------- Run | Scr Mat Mat Traps Triggered 3 | . 2 1 Indirectly . | . . . Trap Hack Attempts . | . . . Triggered . | . . . Disarmed 1 | . 1 . Reprogrammed . | . . . Reused . | . . . Traps Extracted . | . . . Installed . | . . . Triggered . | . . . Machines | -11 -10 -9 ---------- Run | Scr Mat Mat Machines Disabled . | . . . Max in Single Turn . | . . . Machines Sabotaged . | . . . Garrisons Compromised . | . . . Overloaded Fab Kills . | . . . Fab Network Shutdowns . | . . . Hacking | -11 -10 -9 --------- Run | Scr Mat Mat Machines Accessed 7 | . 7 . Terminals 6 | . 6 . Fabricators . | . . . Repair Stations 1 | . 1 . Recycling Units . | . . . Scanalyzers . | . . . Garrison Access . | . . . Total Hacks 33 | . 33 . Successful 19 | . 19 . Failed 14 | . 14 . Catastrophic 1 | . 1 . Database Lockouts . | . . . Manual . | . . . Terminals 30 | . 30 . Fabricators . | . . . Repair Stations 3 | . 3 . Recycling Units . | . . . Scanalyzers . | . . . Garrison Access . | . . . Terminal Hacks 16 | . 16 . Record 9 | . 9 . Emergency Access Points 1 | . 1 . Locate Traps 2 | . 2 . Disarm Traps 1 | . 1 . Dispatch Records 1 | . 1 . Reinforcement Status 1 | . 1 . Zone Layout 1 | . 1 . Fabricator Hacks . | . . . Repair Station Hacks 3 | . 3 . Scan Component 2 | . 2 . Repair 1 | . 1 . Recycling Unit Hacks . | . . . Scanalyzer . | . . . Garrison Access Hacks . | . . . Unauthorized Hacks . | . . . Terminals . | . . . Fabricators . | . . . Repair Stations . | . . . Recycling Units . | . . . Scanalyzers . | . . . Garrison Access . | . . . Data Cores Recovered . | . . . Used . | . . . Hacking Detections 7 | . 7 . Full Trace Events 6 | . 6 . Feedback Events 2 | . 2 . Corruption 2 | . 2 . Feedback Blocked . | . . . Robot Schematics Acquired . | . . . Robots Built . | . . . Matter . | . . . Time . | . . . Total Robot Build Rating . | . . . Part Schematics Acquired . | . . . Parts Built . | . . . Matter . | . . . Time . | . . . Total Part Build Rating . | . . . Parts Repaired 1 | . 1 . Time 26 | . 26 . Parts Recycled . | . . . Recycled Matter . | . . . Retrieved Matter . | . . . Retrieved Components . | . . . Parts Scanalyzed . | . . . Part Schematics Acquired . | . . . Parts Damaged . | . . . Bothacking | -11 -10 -9 ------------ Run | Scr Mat Mat Used RIF Installer . | . . . Robots Hacked . | . . . Non-combat . | . . . Combat . | . . . Robot Hacks Applied . | . . . Relay Couplers Released . | . . . Robots Rewired . | . . . Allies Hacked . | . . . Hacks Repelled . | . . . Allies | -11 -10 -9 -------- Run | Scr Mat Mat Total Allies . | . . . Largest Group . | . . . Highest-Rated Group . | . . . Highest-Rated Ally . | . . . Total Orders . | . . . Ally Attacks . | . . . Total Damage . | . . . Kills . | . . . Allies Corrupted . | . . . Allies Melted . | . . . Intel | -11 -10 -9 ------- Run | Scr Mat Mat Robot Analysis Total . | . . . Derelict Logs Recovered . | . . . Drone Launches . | . . . Drone Recoveries . | . . . Exploration | -11 -10 -9 ------------- Run | Scr Mat Mat Turns Passed 1858 | 80 1354 424 Spaces Moved 1065 | 44 832 189 Core 5 | 5 . . Treads 224 | 39 185 . Legs 836 | . 647 189 Wheels . | . . . Hover . | . . . Flight . | . . . Fastest Speed 50 | 50 120 120 Average Speed 130 | 147 131 120 Slowest Speed 160 | 160 160 120 Overloaded Moves . | . . . Propulsion Burnouts . | . . . Robots Hopped . | . . . Cave-ins Triggered . | . . . Exploration Rate (%) 37 | 2 90 21 Regions Visited 2 Branch Regions . Pre-discovered Areas . | . . . Known Exits Taken . | . . . Unknown Exits Taken 2 | 1 1 . Scrap Searched . | . . . Spaces Dug . | . . . Terrain Destroyed 2 | . . 2 Melee . | . . . Projectile . | . . . AOE 2 | . . 2 Terrain Rammed . | . . . Walls Destroyed . | . . . Machines Disabled . | . . . Actions | -11 -10 -9 --------- Run | Scr Mat Mat Total 1306 | 59 963 284 Wait . | . . . Move 1063 | 43 831 189 Hop . | . . . Pick Up 39 | 8 23 8 Fast Attach . | . . . Attach 24 | 6 9 9 Detach . | . . . Swap 17 | 1 13 3 Drop 17 | 1 13 3 Fire 134 | . 71 63 Melee 6 | . . 6 Ram . | . . . Kick 5 | . 3 2 Crush 1 | . . 1 Escape Stasis . | . . . Rewire . | . . . Trap . | . . . Miscellaneous . | . . . Route ------- -11/Scrapyard -10/Materials (discovered 4 exits: *Mat x3 / [*Min]) -9/Materials History --------- Turn | Location | Event 8 | -11/Scrapyard | Discovered new exit (range 15) 81 | -11/Scrapyard | Entered Materials 307 | -10/Materials | Build established: Mutant 365 | -10/Materials | Discovered new exit (range 9) 465 | -10/Materials | Lost 4 parts (1n1u2w) 509 | -10/Materials | Core integrity fell below 50% 620 | -10/Materials | Repaired Sml. Storage Unit? 641 | -10/Materials | Discovered new exit (range 15) 971 | -10/Materials | Core integrity fell below 20% 1059 | -10/Materials | Discovered new exit (range 16) 1195 | -10/Materials | Discovered new exit (range 15) 1435 | -10/Materials | Entered another Materials area 1435 | -9/Materials | Evolved 2 slots: Power x1, Propulsion x1 1702 | -9/Materials | Destroyed 8 combat bots 1846 | -9/Materials | Core integrity fell below 50% 1853 | -9/Materials | Core integrity fell below 20% 1859 | -9/Materials | Destroyed self with Grenade Launcher Last Messages --------------- active, melee weapons do not fire together with ranged weapons in the same volley. R-06 Scavenger collects Med. Storage Unit. K-01 Serf collects debris. C-30 ARC bursts open, deploying its payload. B-36 Bruiser unfolds itself. G-34 Mercenary unfolds itself. R-06 Scavenger collects Prototype Flight Unit. K-01 Serf collects debris. Aluminum Leg destroyed. Destroyed Beam Rifle. Aluminum Leg destroyed. K-01 Serf collects debris. Y-45 Defender suffers critical hit. Destroyed Lgt. Treads. K-01 Serf collects debris. Y-45 Defender Lgt. Treads ripped off. Slammed into Y-45 Defender. [Achievement: Let's See Who's Tougher] G-34 Mercenary destroyed. Map ----- +----------------------------------------------------+ | #?# # ##### #??????????????????????? | | " """ ############# #???# ############## ? | | " """ ## #???# #???# % = % ? | | " """ ## """#???# #####+############## ? | | ## """#???# # #???????????????????? | | ## """#???# # #???????????????????? | | ## #???# # #???????????????????? | | ## ##### # #???????????????????? | | #+#########+### # # #######?????????????? | | T / ## !!!##????????????? | | ##+#####+### ### #! !#????????????? | | + #### #?# #! !#????????????? | | #### #??# #?# ### %=##??????? #??? | | ???# #??# ######+####### #???? #??? | | ???# ! #??# "" ### #??? | | ???###########??# T ???? | | ?????????? ######??????? | | ??????????# ################# /#???????????? | | ??????????#???????##########???## ! ##???????????? | | ??????????????????#! #????#= !#????????????? | | ??????????????????# k #????#!= #????????????? | | ??????????????????#! k a #????#= =########?????? | | ??????????????????# [ ######!= +?????? | | ??????????????????# # % %k #?????? | | ??????????????????# Y gb ^ %^^ #?????? | | ??????????????????# @Ybg """" [= #?????? | | ??????????????????# !%[ """"%^[^ !!!##????? | | ??????????????????########## """"! !!!"#????? | | ??????????????????????????# ! !!!T#????? | | ????????????????????####### % "#????? | | ???????????????? % % ##????? | | ??????????????? % #???? | | ???????????????? % #???? | | ????????????????###################### +???? | | ?????????????????????????????????????# %!!! #???? | | ?????????????????????????????????????# !!! #???? | | ????????????????????????????????????? !!! #???? | | ????????????????????????????????????? ??? | | ????????????????????????????????????? ###?? | | ????????????????????????????????????# ##+###???? | | ????????????????????????????????????# #? ?????? | | ???????????????????????????????????? ????????? | | ???????????????????????????????????? ! ????????? | | ???????????????????????????????????? ]????????? | | ???????????????????????????????????? ! ????????? | | ????????????????????????????????????? ????????? | | ?????????????????????????????????????????????????? | | ?????????????????????????????????????????????????? | | ?????????????????????????????????????????????????? | | ?????????????????????????????????????????????????? | +----------------------------------------------------+ Best States ------------- Heat Dissipation 35 Energy Generation 15 Energy Capacity 700 Matter Stores 300 Matter Capacity 300 Sight Range 16 Terrain Scan Range 14 Terrain Scan Density 10 Armor Coverage 150 Evasion (%) 40 Recoil Reduction 2 Item Schematics ----------------- None Robot Schematics ------------------ None Fabricated ------------ Nothing Alien Tech Used ----------------- None Achievements -------------- Close Call Let's See Who's Tougher Challenges ------------ None Game ------ Seed AutogunCoreBeam Manual? 0 Play Time 00:34:08 Cumulative 3.6 hours Start 2020.10.20 @ 22:56:23 End 2020.10.20 @ 23:27:02 Sessions 1 Manual Loads 0 Difficulty Rogue Special Mode None Game No. 5 Rogue 5 Adventurer 0 Explorer 0 Win Type - Total 0 Types 0/0/0/0/0/0/0/0/0 Lore% 2 Gallery% 5 Achievement% 4 Wizard Run 0 Options --------- ASCII 0 Keyboard 0 Movement Mouse Keybinds 0 Fullscreen 1 Font 36/Smallcaps Map View 76x50 Tactical HUD 0 Map Filters NONE Filters NONE Steam 1 RUN: d1d2d833-ef13-480b-b113-73f8edf6c5a1